Cogmind - Beta 17 @@@ ROGUE MODE // 2026.07.04 @ 14:43:17 Player: THN-L0C Result: Self-destructed Performance ------------- Evolutions (3) 1500 Regions Visited (5) 1000 Robots Destroyed (74) 370 Value Destroyed (2423) 2423 Prototype IDs (17) 340 Alien Tech Used (0) 0 Bonus (265) 265 TOTAL SCORE: 5898 Bonus ------- High Alert Combat Kills 65 Entered Garrisons 200 Cogmind --------- Core Integrity 525/700 Matter 153/300 Energy 45/140 System Corruption 4% Temperature Cool (0) Movement Hovering (162) Ox2 Location -7/Garrison Parts ------- > --- POWER (1) -------- Light Deuterium Engine > --- PROPULSION (4) --- Improved Airjet Improved Airjet Improved Airjet > --- UTILITY (5) ------ High-capacity Storage Unit Advanced Targeting Computer Target Analyzer > --- WEAPON (3) ------- Minigun Minigun Advanced EMP Blaster > --- INVENTORY (20) --- Improved Airjet Flightbrick High-capacity Matter Pod (0) Improved Terrain Scanner Seismic Detector Scrap Shield Self-contained Transmogrifier Ion Cannon High-powered Shotgun Flak Gun Makeshift Shrapnel Gun Axe Shrapnel Trap Peak State ------------ > --- POWER ------------ Enhanced Nuclear Core > --- PROPULSION ------- Improved Airjet Improved Airjet Improved Airjet Improved Airjet > --- UTILITY ---------- High-capacity Storage Unit Advanced Targeting Computer Hardened Light Armor Plating Hardened Light Armor Plating Insulated Plating > --- WEAPON ----------- Makeshift Shrapnel Gun Makeshift Shrapnel Gun Advanced EMP Blaster > --- INVENTORY -------- Improved Ion Engine Light Deuterium Engine Improved Airjet Improved Airjet Flightbrick High-capacity Matter Pod Improved Terrain Scanner Seismic Detector Scrap Shield Self-contained Transmogrifier Ion Cannon Minigun Minigun High-powered Shotgun Axe Shrapnel Trap [Rating: 56] Favorites ----------- Power Ion Engine Engine Ion Engine Power Core Enhanced Nuclear Core Propulsion Light Treads Treads Light Treads Wheel Wheel Hover Unit Improved Airjet Utility High-capacity Storage Unit Device Seismic Detector Storage High-capacity Storage Unit Processor Advanced Targeting Computer Protection Hardened Light Armor Plating Weapon Particle Gun Energy Gun Particle Gun Energy Cannon Ion Cannon Ballistic Gun Makeshift Shrapnel Gun Launcher Grenade Launcher Special Weapon Mining Laser Slashing Weapon Axe Build | -11 -10 -10 -8 -7 -7 ------- Run | Yrd Mat Sub Mat Fac Gar Slots Evolved 6 | . . . 4 2 . Power . | . . . . . . Propulsion 2 | . . . 2 . . Utility 3 | . . . 2 1 . Weapon 1 | . . . . 1 . Parts Attached 50 | 7 6 8 13 11 5 Power 8 | 1 1 1 2 2 1 Engine 6 | 1 1 1 2 . 1 Core 2 | . . . . 2 . Reactor . | . . . . . . Propulsion 15 | 2 . 1 5 6 1 Treads 7 | 2 . . 5 . . Leg . | . . . . . . Wheel 1 | . . 1 . . . Hover 7 | . . . . 6 1 Flight . | . . . . . . Utility 10 | 2 2 1 3 1 1 Device 1 | 1 . . . . . Storage 2 | 1 1 . . . . Processor 2 | . . . 1 . 1 Hackware . | . . . . . . Protection 5 | . 1 1 2 1 . Artifact . | . . . . . . Weapon 17 | 2 3 5 3 2 2 Energy Gun 6 | 2 2 2 . . . Energy Cannon 1 | . . . 1 . . Ballistic Gun 5 | . . 2 . 1 2 Ballistic Cannon . | . . . . . . Launcher 3 | . 1 . 2 . . Special Weapon 1 | . . 1 . . . Impact Weapon . | . . . . . . Slashing Weapon 1 | . . . . 1 . Piercing Weapon . | . . . . . . Special Melee Weapon . | . . . . . . Unidentified Prototypes 3 | . . . 1 2 . Parts Lost 11 | . . 3 1 1 6 Power 2 | . . . 1 . 1 Propulsion 3 | . . 1 . . 2 Utility 3 | . . . . 1 2 Weapon 3 | . . 2 . . 1 Highest Loss Streak 4 | . . 1 1 1 4 To Critical Strikes 1 | . . 1 . . . Average Backups 14 | . 13 16 14 14 13 Power 1 | . . 1 1 1 . Propulsion 1 | . . . 2 3 2 Utility 6 | . 7 8 5 4 3 Weapon 4 | . 5 5 4 5 4 Tool/Special . | . . . . . . Unused Backups 14 | . . 4 4 1 5 Power 2 | . . . 2 . . Propulsion 4 | . . 1 1 1 1 Utility 6 | . . 3 . . 3 Weapon 1 | . . . 1 . . Tool/Special 1 | . . . . . 1 Average Slot Usage (%) 98 | . 99 99 97 89 95 Engine 11 | . 13 14 8 4 4 Treads 24 | . 28 19 35 10 . Wheel 2 | . . 8 . . . Hover 2 | . . . . 19 30 Device 4 | . 3 5 5 . . Storage 12 | . 14 14 9 7 7 Processor 2 | . . . 8 7 10 Protection 10 | . 10 8 12 15 17 Energy Gun 15 | . 24 21 . . . Ballistic Gun 6 | . . 2 15 20 19 Launcher 1 | . 3 . . . . Special Weapon 1 | . . 3 . . . Peak Build Rating 56 | 7 12 18 34 55 56 Average Rating 20 | 5 11 13 32 45 51 On Entrance 21 | . 7 12 18 34 55 Avg Prop Armor Cover (%) 10 | . . 10 13 . . Naked Turns . | . . . . . . Heaviest Build 68 | 14 56 56 65 68 68 Greatest Support 92 | 40 40 40 92 89 36 Greatest Overweight (x) 5 | 2 1 5 4 3 1 Average Overweight (x) 1 | . . 3 . . 1 Largest Inventory Capacity 20 | 8 20 20 20 20 20 Average Capacity 19 | 7 18 20 20 20 20 Most Carried 20 | 2 15 20 20 20 20 Average Carried 16 | . 13 17 19 19 18 Final Capacity 20 | 8 20 20 20 20 20 Final Carried 20 | 2 15 20 20 20 17 Class Distribution -------------------- 93% | Mutant 4% | Tank Dominant Class ---------------- Mutant | -10/Materials Mutant | -10/Subcaves Mutant | -8/Materials Tank | -7/Factory Mutant | -7/Garrison Resources | -11 -10 -10 -8 -7 -7 ----------- Run | Yrd Mat Sub Mat Fac Gar Matter Collected 1990 | 200 317 308 623 108 434 Remotely . | . . . . . . Salvage Created 1957 | 108 386 226 776 108 353 Parts 133 | 12 19 13 56 12 21 Haulers Intercepted 1 | . . . 1 . . Recyclers Shooed 2 | 1 . . 1 . . Parts Field Recycled . | . . . . . . Retrieved Matter . | . . . . . . Parts Self-Destructed 6 | . . 6 . . . Prevented . | . . . . . . Parts Restored . | . . . . . . Kills | -11 -10 -10 -8 -7 -7 ------- Run | Yrd Mat Sub Mat Fac Gar Combat Hostiles Destroyed 59 | . 9 6 29 2 13 Guns 35 | . 4 6 16 2 7 AOE 24 | . 5 . 13 . 6 Classes Destroyed 13 | 2 3 2 5 1 . Builder 3 | . . . 3 . . Tunneler 2 | 2 . . . . . Hauler 1 | . . . 1 . . Recycler 4 | 1 1 . 1 1 . Operator 1 | . . . 1 . . Watcher 4 | . 2 . 2 . . Swarmer 22 | . 3 . 11 . 8 Grunt 21 | . 6 . 12 . 3 Duelist 1 | . . . 1 . . Sentry 6 | . . . 5 . 1 Programmer 3 | . . . . 2 1 Artisan 1 | . . 1 . . . Subdweller 6 | . . 6 . . . Best Kill Streak 10 | 2 3 2 10 1 5 Combat Bots Only 8 | . 3 2 8 1 5 Max Kills in Single Turn 5 | 1 3 1 5 1 2 Gunslinging . | . . . . . . Exploded 5 | . 3 . 5 . 2 Melee . | . . . . . . Uniques/NPCs Destroyed . | . . . . . . Combat | -11 -10 -10 -8 -7 -7 -------- Run | Yrd Mat Sub Mat Fac Gar Hostile Shots Fired 291 | . 26 27 110 23 105 Missed 82 | . 9 7 30 8 28 Hits 209 | . 17 20 80 15 77 Projectile 209 | . 17 20 80 15 77 AOE 7 | . . 7 . . . Critical Strikes 4 | . . 1 1 1 1 Damage Taken 3308 | . 226 686 1145 238 1013 Core 506 | . 26 148 157 31 144 Absorbed by Shields 9 | . . . . . 9 Ignored by Resistances 42 | . . . . . 42 Regen/Repaired (Parts) 193 | . 64 . 129 . . Core Remaining (%) 67 | 100 . 30 71 . . Volleys Fired 177 | 7 19 37 79 5 30 Largest 3 | 2 2 2 2 3 3 Hottest 130 | 90 130 130 60 73 73 Shots Fired 297 | 14 35 56 120 15 57 Gun 232 | 14 30 39 83 15 51 Cannon 18 | . . . 18 . . Launcher 35 | . 5 5 19 . 6 Special 12 | . . 12 . . . Kinetic 149 | . . . 83 15 51 Thermal 113 | 14 30 51 18 . . Explosive 29 | . 5 5 19 . . Electromagnetic 6 | . . . . . 6 Robot Hit Streak 18 | 9 15 18 15 9 12 Robot Miss Streak 6 | 3 3 1 6 4 6 Penetration Max . | . . . . . . Secondary Targets 2 | . . . 1 . 1 Max Gunslinging Chain 1 | . . . 1 . 1 Shots Hit Robots 194 | 10 18 32 79 9 46 Core Hits 150 | 4 17 13 82 7 27 Critical Kills . | . . . . . . Critical Parts Destroyed 1 | . . . . . 1 Critical Strikes 5 | 1 1 2 . . 1 Burn 4 | 1 1 2 . . . Destroy 1 | . . . . . 1 Melee Attacks 1 | . . . . 1 . Impact . | . . . . . . Slashing 1 | . . . . 1 . Piercing . | . . . . . . Sneak Attacks . | . . . . . . Combat Hostiles . | . . . . . . Follow-up Attacks . | . . . . . . Damage Inflicted 5298 | 122 581 367 2877 209 1142 Guns 3260 | 122 306 367 1468 209 788 Cannons . | . . . . . . Explosions 1994 | . 275 . 1365 . 354 Melee . | . . . . . . Ramming 44 | . . . 44 . . Kinetic 2465 | . . . 1468 209 788 Thermal 878 | 122 306 367 . . 83 Explosive 1640 | . 275 . 1365 . . Electromagnetic 271 | . . . . . 271 Impact . | . . . . . . Slashing . | . . . . . . Piercing . | . . . . . . Highest Corruption 4 | . . . . 2 4 Average Corruption 2 | . . . . 1 3 Corruption Purged . | . . . . . . Corruption Blocked . | . . . . . . Effects 11 | . . . . 1 10 Message Errors 3 | . . . . . 3 Matter Fused 4 | . . . . 1 3 Data Loss (minor) 1 | . . . . . 1 Alerts 1 | . . . . . 1 Weapon Failures 2 | . . . . . 2 Overload Shots . | . . . . . . Overflow Damage 18 | . 3 . 15 . . Projectiles . | . . . . . . Explosions 16 | . 3 . 13 . . Melee 2 | . . . 2 . . Knockbacks 1 | . . . 1 . . Impact 1 | . . . 1 . . Kinetic . | . . . . . . Secondary . | . . . . . . Self-Inflicted Damage 181 | . 38 . 36 . 107 Shots 8 | . 1 . 1 . 6 Rammed 3 | . . . 3 . . Targets Rammed 3 | . . . 3 . . Kicked . | . . . . . . Crushed . | . . . . . . Highest Temperature 336 | 70 279 105 120 60 336 Average Temperature 85 | 31 105 36 34 21 174 Received Heat Transfer 730 | . 78 102 396 18 136 Effects 3 | . 1 . . . 2 Energy Bleed 2 | . . . . . 2 Interference 1 | . 1 . . . . Siege Activations . | . . . . . . Martial Activations . | . . . . . . Shielding Activations . | . . . . . . Robots Disrupted . | . . . . . . Combat Hostiles . | . . . . . . Robots Corrupted . | . . . . . . Combat Hostiles . | . . . . . . Parts Fried 1 | . . . . . 1 Impact Corruptions 1 | . . . 1 . . Robots Melted . | . . . . . . Combat Hostiles . | . . . . . . Parts Melted 5 | . 2 3 . . . Heat Transferred 2309 | 396 814 999 . . 100 Parts Sabotaged . | . . . . . . Parts Stolen . | . . . . . . Parts Stripped . | . . . . . . Power Chain Reactions 2 | . . . . . 2 Alert | -11 -10 -10 -8 -7 -7 ------- Run | Yrd Mat Sub Mat Fac Gar Maximum Alert Level 2 | . . . 2 1 2 Low Security (%) 84 | 100 100 . 66 81 59 Level 1 5 | . . . 4 18 34 Level 2 10 | . . . 28 . 5 Level 3 . | . . . . . . Level 4 . | . . . . . . Level 5 . | . . . . . . High Security . | . . . . . . Max Security . | . . . . . . Peak Influence 517 | 10 118 . 517 228 502 Initial 228 | . . . . 228 9 Average 93 | 1 35 . 169 95 169 Influence Increases 1855 | 15 341 . 876 80 543 Destroy 0b10 Robot/C 1060 | . 180 . 580 40 260 Destroy 0b10 Robot/NC 75 | 15 15 . 40 5 . Destroy Leader 220 | . 44 . 126 20 30 Successful Hack 96 | . 34 . 32 14 16 Disable Machine 30 | . . . 15 . 15 Anti-Garrison Action 100 | . . . . . 100 Destroy Structure 109 | . 38 . 68 1 2 Partial Spotted 15 | . . . 15 . . Lose Combat Pursuer 150 | . 30 . . . 120 Influence Decreases 1363 | 15 320 21 372 570 65 Entered New Map 292 | . . 11 . 276 5 Time Decay 846 | 15 320 10 367 134 . Lost Part 75 | . . . 5 10 60 Purge Threat 150 | . . . . 150 . Squads Dispatched 4 | . . . 4 . . Investigation 1 | . . . 1 . . Extermination . | . . . . . . Reinforcement 2 | . . . 2 . . Assault 1 | . . . 1 . . Garrison . | . . . . . . Intercept . | . . . . . . Searches Triggered . | . . . . . . Construction Impeded 1 | . . . 1 . . Haulers Reinforced . | . . . . . . Active Scanning Responses . | . . . . . . Cargo Convoy Interrupts . | . . . . . . Stealth | -11 -10 -10 -8 -7 -7 --------- Run | Yrd Mat Sub Mat Fac Gar Distress Signals 5 | . 3 . 2 . . Communications Jammed . | . . . . . . Distress Signals . | . . . . . . Times Spotted 92 | . 16 7 43 4 22 Peak Tracking Total 7 | . 3 2 7 2 6 Tactical Retreats 4 | . 2 . . . 2 Traps | -11 -10 -10 -8 -7 -7 ------- Run | Yrd Mat Sub Mat Fac Gar Traps Triggered 5 | . . . 3 1 1 Indirectly . | . . . . . . Trap Hack Attempts . | . . . . . . Triggered . | . . . . . . Disarmed . | . . . . . . Reprogrammed . | . . . . . . Reused . | . . . . . . Traps Extracted . | . . . . . . Installed . | . . . . . . Triggered . | . . . . . . Most Traps Carried 1 | . . 1 1 1 1 Machines | -11 -10 -10 -8 -7 -7 ---------- Run | Yrd Mat Sub Mat Fac Gar Machines Disabled 4 | . . 1 1 . 2 Max in Single Turn 2 | . . 1 1 . 2 Garrison Relay 1 | . . . . . 1 Machines Repaired . | . . . . . . Machines Dismantled . | . . . . . . Machines Sabotaged . | . . . . . . Overloaded Fab Kills . | . . . . . . Hacking | -11 -10 -10 -8 -7 -7 --------- Run | Yrd Mat Sub Mat Fac Gar Machines Accessed 22 | . 9 3 6 2 2 Terminals 13 | . 8 . 2 1 2 Fabricators . | . . . . . . Repair Stations 2 | . 1 . 1 . . Recycling Units 1 | . . . 1 . . Scanalyzers 2 | . . . 2 . . Garrison Access 1 | . . . . 1 . Total Hacks 64 | . 26 6 24 5 3 Successful 42 | . 17 6 16 2 1 Failed 22 | . 9 . 8 3 2 Catastrophic 1 | . 1 . . . . Database Lockouts . | . . . . . . Manual 23 | . 19 . 4 . . Terminals 32 | . 22 . 4 3 3 Fabricators . | . . . . . . Repair Stations 9 | . 4 . 5 . . Recycling Units 4 | . . . 4 . . Scanalyzers 11 | . . . 11 . . Garrison Access 2 | . . . . 2 . Terminal Hacks 13 | . 5 6 . 1 1 Record 4 | . . 4 . . . Robot Analysis 2 | . 2 . . . . Open Door 1 | . . 1 . . . Terminal Index 1 | . 1 . . . . Unreport Threat 1 | . . . . 1 . Locate Traps 2 | . 2 . . . . Security Stations 1 | . . . . . 1 Proto ID Catalog 1 | . . 1 . . . Fabricator Hacks . | . . . . . . Repair Station Hacks 8 | . 4 . 4 . . Scan Component 4 | . 2 . 2 . . Repair 4 | . 2 . 2 . . Recycling Unit Hacks 2 | . . . 2 . . Process 1 | . . . 1 . . Retrieve Matter 1 | . . . 1 . . Scanalyzer 9 | . . . 9 . . Insert Component 2 | . . . 2 . . Analyze 2 | . . . 2 . . Retrieve Study 5 | . . . 5 . . Garrison Access Hacks 1 | . . . . 1 . Unlock Access 1 | . . . . 1 . Unauthorized Hacks 9 | . 8 . 1 . . Terminals 9 | . 8 . 1 . . Botnet 3 | . 2 . 1 . . Operators 1 | . 1 . . . . Skim 5 | . 5 . . . . Fabricators . | . . . . . . Repair Stations . | . . . . . . Recycling Units . | . . . . . . Scanalyzers . | . . . . . . Garrison Access . | . . . . . . Data Cores Recovered . | . . . . . . Used . | . . . . . . Hacking Detections 18 | . 9 . 5 2 2 Full Trace Events 2 | . . . 1 . 1 Feedback Events . | . . . . . . Feedback Blocked . | . . . . . . Robot Schematics Acquired . | . . . . . . Robots Built . | . . . . . . Authchips . | . . . . . . Time . | . . . . . . Total Robot Build Rating . | . . . . . . Part Schematics Acquired 2 | . . . 2 . . Parts Built . | . . . . . . Authchips . | . . . . . . Time . | . . . . . . Total Part Build Rating . | . . . . . . Part Studies Acquired 5 | . . . 5 . . Parts Repaired 4 | . 2 . 2 . . Time 146 | . 58 . 88 . . Parts Recycled . | . . . . . . Recycled Matter 134 | . . . 134 . . Retrieved Matter 134 | . . . 134 . . Retrieved Components . | . . . . . . Parts Scanalyzed 2 | . . . 2 . . Part Schematics Acquired 2 | . . . 2 . . Parts Damaged . | . . . . . . Bothacking | -11 -10 -10 -8 -7 -7 ------------ Run | Yrd Mat Sub Mat Fac Gar Used RIF Installer . | . . . . . . Robots Hacked . | . . . . . . Non-combat . | . . . . . . Combat . | . . . . . . Robot Hacks Applied . | . . . . . . Relay Couplers Released 5 | . . . . . 5 Machine Destruction 5 | . . . . . 5 Fabnet Peak Effective % . | . . . . . . Robots Rewired . | . . . . . . Allies Hacked . | . . . . . . Hacks Repelled . | . . . . . . Allies | -11 -10 -10 -8 -7 -7 -------- Run | Yrd Mat Sub Mat Fac Gar Total Allies . | . . . . . . Largest Group . | . . . . . . Highest-Rated Group . | . . . . . . Highest-Rated Ally . | . . . . . . Total Orders . | . . . . . . Ally Attacks . | . . . . . . Total Damage . | . . . . . . Kills . | . . . . . . Allies Corrupted . | . . . . . . Allies Melted . | . . . . . . Intel | -11 -10 -10 -8 -7 -7 ------- Run | Yrd Mat Sub Mat Fac Gar Active Infowar (turns) 1964 | 19 425 751 769 . . Seismic 1964 | 19 425 751 769 . . Robot Analysis Total 2 | . 2 . . . . Derelict Logs Recovered 1 | . . 1 . . . Drone Launches . | . . . . . . Drone Recoveries . | . . . . . . Exploration | -11 -10 -10 -8 -7 -7 ------------- Run | Yrd Mat Sub Mat Fac Gar Turns Passed 5565 | 155 1757 1796 1299 326 232 Spaces Moved 2337 | 76 478 905 528 235 115 Core 6 | 6 . . . . . Treads 1389 | 70 478 264 518 59 . Legs . | . . . . . . Wheels 651 | . . 641 10 . . Hover 291 | . . . . 176 115 Flight . | . . . . . . Fastest Speed 50 | 50 160 140 140 98 98 Average Speed 171 | 153 219 177 161 114 98 Slowest Speed 320 | 160 240 320 163 290 98 Overloaded Moves . | . . . . . . Propulsion Burnouts . | . . . . . . Robots Hopped . | . . . . . . Potential Cave-ins 1 | . . 1 . . . Cave-ins Triggered . | . . . . . . Exploration Rate (%) 32 | 5 80 37 43 10 22 Regions Visited 5 Branch Regions 1 Pre-discovered Areas 1 | . . 1 . . . Known Exits Taken 1 | . . . . 1 . Unknown Exits Taken 4 | 1 1 1 1 . . Scrap Searched 6 | . . 6 . . . Spaces Dug 4 | . . 1 2 1 . Terrain Destroyed 168 | . 40 16 109 1 2 Melee 1 | . . . . 1 . Projectile 3 | . . 1 2 . . AOE 164 | . 40 15 107 . 2 Terrain Rammed . | . . . . . . Walls Destroyed . | . . . . . . Machines Disabled . | . . . . . . Actions | -11 -10 -10 -8 -7 -7 --------- Run | Yrd Mat Sub Mat Fac Gar Total 3555 | 97 1145 1011 847 274 181 Wait 876 | 6 622 35 193 9 11 Move 2333 | 75 477 904 527 235 115 Hop . | . . . . . . Pick Up 38 | 2 13 11 8 2 2 Fast Attach 19 | 7 2 . 8 2 . Attach 8 | . . 3 1 1 3 Detach . | . . . . . . Swap 60 | . 10 12 18 14 6 Drop 28 | . 2 9 10 5 2 Fire 177 | 7 19 37 79 5 30 Melee 1 | . . . . 1 . Ram . | . . . . . . Kick . | . . . . . . Crush 3 | . . . 3 . . Escape Stasis 12 | . . . . . 12 Rewire . | . . . . . . Trap . | . . . . . . Miscellaneous . | . . . . . . Route ------- -11/Scrapyard -10/Materials (discovered 4 exits: [*Mat x2] / *Min / *Sub) -10/Subcaves -8/Materials -7/Factory -7/Garrison History --------- Turn | Location | Event 43 | -11/Scrapyard | Discovered new exit (range 15) 156 | -11/Scrapyard | Entered Materials 328 | -10/Materials | Build established: Mutant 828 | -10/Materials | Discovered new exit (range 8) 1230 | -10/Materials | Repaired Particle Gun 1257 | -10/Materials | Repaired Ion Engine 1337 | -10/Materials | Discovered new exit (range 12) 1451 | -10/Materials | Discovered new exit (range 8) 1513 | -10/Materials | Loaded intel: 13 trap records 1582 | -10/Materials | Learned location of 2 exits from Mines 1642 | -10/Materials | Identified exit to Mines 1692 | -10/Materials | Learned Storage trap positions 1731 | -10/Materials | Learned 4 Subcaves zone layouts 1780 | -10/Materials | Loaded intel: 2 recycling unit locations 1837 | -10/Materials | Learned location of 1 exit from Recycling 1892 | -10/Materials | Discovered new exit (range 10) 1913 | -10/Materials | Entered Subcaves 2832 | -10/Subcaves | Discovered new exit (range 13) 2857 | -10/Subcaves | Visited Clippyterm 2861 | -10/Subcaves | Learned Research machine intel 2861 | -10/Subcaves | Learned Factory garrison access intel 2884 | -10/Subcaves | Disturbed a concealed Subdweller 2885 | -10/Subcaves | Core integrity fell below 50% 2887 | -10/Subcaves | Ambushed by Subdweller buried in earth 2992 | -10/Subcaves | Learned location of Storage (-7) 3407 | -10/Subcaves | Visited 4L-MR0's lab 3421 | -10/Subcaves | Found Prototype Device 3437 | -10/Subcaves | Found Flightbrick 3709 | -10/Subcaves | Entered Materials 3709 | -8/Materials | Evolved 4 slots: Propulsion x2, Utility x2 4662 | -8/Materials | Destroyed 8 combat bots 4747 | -8/Materials | Repaired Mak. Shrapnel Gun 4793 | -8/Materials | Repaired Mak. Shrapnel Gun 4908 | -8/Materials | Discovered new exit (range 16) 4909 | -8/Materials | First assault squad dispatched 5008 | -8/Materials | Entered Factory 5008 | -7/Factory | Evolved 2 slots: Utility x1, Weapon x1 5009 | -7/Factory | Loaded intel: 4 garrison access locations 5334 | -7/Factory | Identified exit to Garrison 5334 | -7/Factory | Entered Garrison 5359 | -7/Garrison | Learned Factory security intel 5416 | -7/Garrison | Triggered checkpoint 5496 | -7/Garrison | Triggered checkpoint 5566 | -7/Garrison | Self-destructed Last Messages --------------- 05512_ KXJKQTBK&7/XPKQOXJ6TQSCOOQDS 05521_ Y-54 Guardian destroyed. 05522_ Insulated Plating destroyed. 05526_ S-27 Virus destroyed. 05529_ MSIO%RRMFZPCPU= CAGOFVI6 05530_ Imp. Airjet destroyed. 05532_ S-27 Virus destroyed. 05540_ Acquired 20 matter. 05542_ Acquired Flak Gun. 05544_ E#3/0G HMT5MJS#YW=N0QLJIQEJ6II 05544_ C-45 Heavy ARC bursts open, deploying its payload. 05544_ S-27 Virus unfolds itself. 05548_ S-27 Virus destroyed. 05550_ System corrupted: Adv. EMP Blaster failed to launch. 05554_ S-27 Virus destroyed. 05558_ Hrd. Light Armor Plating destroyed. 05561_ Acquired 41 matter. 05562_ Acquired 73 matter. 05564_ Garrison Terminal disabled. 05565_ Imp. Airjet destroyed. Map ----- +----------------------------------------------------+ | ????????????????????????????????????????????????? | | ????????????????????????????????????????????????? | | ????????????????????????????????????????????????? | | ????????????????????????????????????????????????? | | ????????????????????????????????????????????????? | | ????????????????????????????????????????????????? | | ????????????????????????????????????????????????? | | ????????????????????????????????????????????????? | | ????????????????????????????????????????????????? | | ????????????????????????????????????????????????? | | ????????????????????????????????????????????????? | | ?????????????? ????????????????????????????????? | | ?????????????? ????????????????????????????????? | | ?????????????? ????????????????????????????????? | | ?????????????# ????????????????????????????????? | | ?????????????# ?????????#??????????????????????? | | ?????????????# ????????? ??????????????????????? | | ?????????????# #???????#s#?????????????????????? | | ?????????????# #??????? #?????????????????????? | | ??###??????### #???????# ###???????????????????? | | ??# ??????? #???????# C#???????????????????? | | ??# ???????? #???????# C#???????????????????? | | ??# #???????# #???????# #???????????????????? | | ??# #???????# #???????#** ????????????????????? | | ??# #???????# [#########%#?????????????????????? | | ??# #???????# =s =[== @#?????????????????????? | | ??# #???????# ###########?????????????????????? | | ??# #???????# #???????????????????????????????? | | "## ##??????# #???????????????????????????????? | | ######## #???????????????????????????????? | | #####???????????????????????????? | | * "#???????????????????????????? | | ## ! ###########"T"#???????????????????????????? | | ## [###???????#####???????????????????????????? | | %#???????????????????????????????????????? | | * % #???????????????????????????????????????? | | %#???????????????????????????????????????? | | =% #???????????????????????????????????????? | | "" ###???????????????????????????????????????? | | ## ###########???????????????????????????????? | | #???????????????????????????????? | | #???????????????????????????????? | | ######## #???????????????????????????????? | | "######??????# #???????????????????????????????? | | ?????????????# #???????????????????????????????? | | ?????????????# #???????????????????????????????? | | ?????????????# #???????????????????????????????? | | ?????????????+=*#???????????????????????????????? | | ?????????????#= #???????????????????????????????? | | ?????????????#= #???????????????????????????????? | +----------------------------------------------------+ Best States ------------- Heat Dissipation 34 Energy Generation 17 Energy Capacity 300 Matter Stores 300 Matter Capacity 300 Sight Range 16 Terrain Scan Density 10 Armor Coverage 450 Resistance: EM 15 Evasion (%) 40 Targeting Accuracy 8 Target Analysis 5 Recoil Reduction 4 Item Schematics ----------------- Seismic Detector | -8/Materials | Scanalyzed Hrd. Light Armor Plating | -8/Materials | Scanalyzed Robot Schematics ------------------ None Fabricated ------------ Nothing Repaired ---------- Particle Gun | 61% | -10/Materials Ion Engine | 41% | -10/Materials Mak. Shrapnel Gun | 5% | -8/Materials Mak. Shrapnel Gun | 10% | -8/Materials Studied --------- Arm. Treads | -8/Materials | Hacked Minigun | -8/Materials | Hacked Imp. Treads | -8/Materials | Hacked Ion Cannon | -8/Materials | Hacked Imp. Ion Engine | -8/Materials | Hacked Alien Tech Used ----------------- None Achievements -------------- None Challenges ------------ None Game ------ Seed ReinforcedTrapBeacon Manual? 0 Play Time 00:35:20 Cumulative 434.7 hours Start 2026.07.04 @ 14:10:25 End 2026.07.04 @ 14:43:17 Sessions 1 Manual Loads 0 Difficulty Rogue Special Mode None Game No. 319 Rogue 319 Adventurer 0 Explorer 0 Win Type - Total 9 Types 4/0/3/2/0/0/0/0/0/0 Lore% 78 Gallery% 73 Achievement% 55 Wizard Run 0 Options --------- Layout 2 ASCII 0 Keyboard 1 Movement Vi Keybinds 0 Fullscreen 2 Font 32/SmallcapsGlow Map View 77x44 Zoom Use 0% Tactical HUD 1 Map Filters NONE Filters NONE Steam 1 RUN: 56f2985f-9131-40d3-b20c-8aadad33fb20